[Event "4NCL Spring GM Round Robin 2024"]
[Site "Peterborough"]
[Date "2024.03.25"]
[Round "4.3"]
[White "Royal, Shreyas"]
[Black "Harvey, Marcus R"]
[Result "1/2-1/2"]
[ECO "D27"]
[WhiteElo "2457"]
[BlackElo "2468"]
[Annotator "TA"]
[PlyCount "101"]
[EventDate "2024.03.22"]
[EventType "tourn"]
[EventCountry "ENG"]
[SourceTitle "playchess.com"]
[Source "ChessBase"]
[SourceQuality "1"]
[TimeControl "5400+30"]

{[%evp 15,101,22,34,22,24,11,39,33,53,-1,35,33,35,15,14,23,11,4,12,0,0,0,0,0,0,0,0,0,7,0,0,0,0,0,0,0,9,0,31,10,9,0,0,0,0,0,0,0,0,-24,-28,-27,-21,-32,-35,-31,-30,-21,-2,-6,-8,-24,0,0,0,0,0,0,111,91,181,181,181,181,201,181,181,71,71,0,0,0,0,0,0,0,0,0]} 1. d4 {[%emt 0:00:03]} d5 {[%emt 0:06:43]} 2. c4 {[%emt 0:00:17]} dxc4 {[%emt 0:00:05]} 3. Nf3 {[%emt 0:00:07]} Nf6 {[%emt 0:00:10]} 4. e3 {[%emt 0:00:08]} e6 {[%emt 0:00:02]} 5. Bxc4 {[%emt 0:00:08]} c5 {[%emt 0:00:10]} 6. O-O {[%emt 0:00:07]} a6 {[%emt 0:00:06]} 7. b3 {[%emt 0:01:29]} cxd4 {[%emt 0:01:54]} 8. Nxd4 {[%emt 0:00:08]} Bd6 {[%emt 0:01:58]} 9. Bd3 {[%emt 0:02:33]} O-O {[%emt 0:01:36]} 10. Bb2 {[%emt 0:03:59]} Qe7 {[%emt 0:07:57]} 11. Nd2 {[%emt 0:02:56][%cal Bb1d2,Bd2c4,Bc4e5][%mdl 32] White is slightly better.} Rd8 {[%emt 0:08:26]} 12. Qe2 {[%emt 0:06:37]} (12. Rc1 $14) 12... Bd7 {[%emt 0:06:30]} 13. Nc4 {[%emt 0:08:10]} Bc5 {[%emt 0:01:53]} 14. Ne5 {[%emt 0:06:02]} Be8 {[%emt 0:01:18]} 15. Rfd1 {[%emt 0:13:03]} Rc8 {[%emt 0:06:50]} 16. Rac1 {[%emt 0:06:00] Hoping for b4.} Nbd7 {[%emt 0:01:05]} 17. Ndf3 {[%emt 0:00:07]} Nxe5 {[%emt 0:06:09]} 18. Nxe5 {[%emt 0:00:28]} Ba3 {[%emt 0:01:11]} 19. Bxa3 {[%emt 0:05:09]} Qxa3 {[%emt 0:00:08]} 20. Nc4 {[%emt 0:00:04]} Qe7 {[%emt 0:01:30]} 21. Qb2 {[%emt 0:00:20]} Rc7 {[%emt 0:01:52]} 22. Be2 {[%emt 0:03:06]} Rac8 {[%emt 0:04:20]} 23. Bf3 {[%emt 0:00:38]} h6 {[%emt 0:02:03]} 24. h3 {[%emt 0:01:49]} Qb4 {[%emt 0:03:02][%cal Rc7c4] [#] ...Rxc4 would now be deadly.} 25. a3 {[%emt 0:01:27]} Qe7 {[%emt 0:00:10]} 26. Ne5 {[%emt 0:02:07]} b6 {[%emt 0:04:25][%cal Bb7b6,Bb6b5][%mdl 32]} 27. Rxc7 {[%emt 0:03:03]} Qxc7 {[%emt 0:01:04]} 28. Qd4 {[%emt 0:01:45]} Qc5 {[%emt 0:02:38]} 29. Nc4 {[%emt 0:07:52]} b5 {[%emt 0:01:19]} 30. Bb7 {[%emt 0:02:55]} bxc4 {[%emt 0:01:44]} 31. Bxc8 {[%emt 0:00:08]} Qxc8 {[%emt 0:00:02]} 32. Rc1 {[%emt 0:01:38]} Qc7 {[%emt 0:02:23]} 33. Rxc4 {[%emt 0:01:22]} Qa5 {[%emt 0:00:29]} 34. Qb2 {[%emt 0:00:36]} Bd7 {[%emt 0:03:53]} 35. Qc1 {[%emt 0:00:55]} Qd5 {[%emt 0:00:54]} 36. Qc2 {[%emt 0:00:52]} e5 {[%emt 0:00:28]} 37. Rc5 {[%emt 0:00:58]} Qd6 {[%emt 0:00:06]} 38. b4 {[%emt 0:00:05]} e4 {[%emt 0:00:33]} 39. Rc4 {[%emt 0:02:21]} Bb5 {[%emt 0:02:26]} 40. Rd4 {[%emt 0:01:17]} Qe6 {[%emt 0:01:57]} 41. a4 {[%emt 0:00:36][%cal Ba3a4,Ba4b5][%mdl 32]} Bd3 {[%emt 0:00:05]} (41... Bd7 $11 {remains equal.}) 42. Qc5 $16 {[%emt 0:00:38] Strongly threatening b5.} Kh7 {[%emt 0:04:30]} (42... Qe8 $16 {was called for.}) 43. b5 $18 {[%emt 0:05:01]} axb5 {[%emt 0:00:11]} 44. axb5 {[%emt 0:00:01]} Nd7 {[%emt 0:03:15]} 45. Qc6 {[%emt 0:00:59]} Nb6 {[%emt 0:04:48]} 46. Rd6 {[%emt 0:01:54]} (46. h4 $18 {has better winning chances.}) 46... Qe5 $16 {[%emt 0:00:18] [#]} 47. Qxb6 {[%emt 0:02:28]} (47. f4 $1 $16 {[%cal Rf4e5]} Qa1+ (47... Qxb5 $2 {too greedy.} 48. Qxb5 Bxb5 49. Rxb6 $18) 48. Kh2) 47... Qa1+ $11 {[%emt 0:00:05] The position is equal.} 48. Kh2 {[%emt 0:00:02]} Qe5+ {[%emt 0:00:05]} 49. Kg1 {[%emt 0:05:59] Black must now prevent Qd4.} (49. Kh1 $5 Qa1+ $8 50. Kh2 Qe5+ 51. Kg1 (51. g3 Qb2 $11) 51... Qa1+ 52. Kh2 $11) 49... Qa1+ {[%emt 0:00:05]} 50. Kh2 {[%emt 0:00:04] And now Qc5 would win.} Qe5+ {[%emt 0:00:08]} 51. Kg1 {[%emt 0:00:51] Weighted Error Value: White=0.11 (very precise) /Black=0.12 (very precise) .  Mistake:       	White=3     	Black=2      Inaccurate:     	---       	Black=3      OK:         	White=17    	Black=22     Best:        	White=1     	Black=1} (51. Kh1 $5 Qa1+ $8 52. Kh2 $11) 1/2-1/2

[Event "4NCL Spring GM Round Robin 2024"]
[Site "Peterborough"]
[Date "2024.03.25"]
[Round "4.4"]
[White "Makkar, Rajat"]
[Black "Teclaf, Pawel"]
[Result "0-1"]
[ECO "A11"]
[WhiteElo "2434"]
[BlackElo "2556"]
[Annotator "TA"]
[PlyCount "62"]
[EventDate "2024.03.22"]
[EventType "tourn"]
[EventCountry "ENG"]
[SourceTitle "playchess.com"]
[Source "ChessBase"]
[SourceQuality "1"]
[TimeControl "5400+30"]

{[%evp 12,62,24,28,30,17,27,20,10,10,28,16,18,-14,-14,-61,-44,-33,-36,-58,-67,-72,-82,-122,-122,-125,-125,-133,-119,-206,-200,-197,-198,-201,-196,-182,-189,-257,-251,-252,-250,-317,-308,-333,-304,-346,-343,-329,-340,-360,-366,-400,-397]} 1. c4 {[%emt 0:00:37]} Nf6 {[%emt 0:00:24]} 2. g3 {[%emt 0:00:32]} c6 {[%emt 0:00:52]} 3. Nf3 {[%emt 0:00:21]} d5 {[%emt 0:00:07]} 4. Bg2 {[%emt 0:00:23]} dxc4 {[%emt 0:04:43]} 5. O-O {[%emt 0:00:45]} Nbd7 {[%emt 0:00:10]} 6. Qc2 {[%emt 0:00:35]} Nb6 {[%emt 0:00:56]} 7. Na3 {[%emt 0:00:08]} g6 {[%emt 0:00:04]} 8. Nxc4 {[%emt 0:00:50]} Nxc4 {[%emt 0:00:14]} 9. Qxc4 {[%emt 0:00:05]} Bg7 {[%emt 0:00:03] The position is equal.} 10. Re1 {[%emt 0:00:29]} O-O {[%emt 0:16:19]} 11. d4 {[%emt 0:00:34]} Bg4 {[%emt 0:02:36]} 12. b4 {[%emt 0:31:34]} Qd5 {[%emt 0:11:03]} 13. Qc3 {[%emt 0:13:19]} (13. Qc5 $11) 13... Ne4 $1 $15 {[%emt 0:01:48]} 14. Qc2 {[%emt 0:00:10][%cal Of3g5]} Qf5 {[%emt 0:09:35][%cal Og7d4] [#] aiming for ...Bxd4!} 15. Qd3 {[%emt 0:47:38][%cal Oh2h3]} Rfd8 {[%emt 0:07:11][%cal Og7d4] ...Bxd4! is the strong threat.} 16. Bb2 {[%emt 0:00:00]} Bxf3 {[%emt 0:05:52]} 17. Qxf3 {[%emt 0:00:00]} Bxd4 {[%emt 0:03:17] Black has more active pieces.} 18. Bxd4 {[%emt 0:00:00]} Rxd4 {[%emt 0:00:05]} 19. Qe3 {[%emt 0:00:00]} Rxb4 {[%emt 0:06:11]} 20. Rac1 {[%emt 0:00:00] Repels Qc5} (20. a3 $17 Rc4 21. Rec1 Rxc1+ 22. Rxc1) 20... Qe6 $19 {[%emt 0:01:53]} 21. Rb1 {[%emt 0:00:00]} Rxb1 {[%emt 0:00:29]} 22. Rxb1 {[%emt 0:00:00]} Nd6 {[%emt 0:00:06]} (22... Qxa2 $2 {too greedy.} 23. Bxe4 (23. Qxe4 Rd8 $18) 23... b6 24. Rc1 $18) 23. Qxe6 {[%emt 0:00:00]} fxe6 {[%emt 0:00:05][%mdl 4096] Endgame. KRB-KRN} 24. e4 {[%emt 0:00:00]} (24. Rb3 $142) 24... e5 {[%emt 0:02:55]} 25. f4 {[%emt 0:00:00]} b6 {[%emt 0:01:17]} 26. fxe5 {[%emt 0:00:00]} Nc4 {[%emt 0:00:27]} 27. e6 {[%emt 0:00:00]} Rd8 {[%emt 0:00:16]} 28. e5 {[%emt 0:00:00]} Nxe5 {[%emt 0:01:44]} 29. Re1 {[%emt 0:00:00]} Nd3 {[%emt 0:00:08]} 30. Rd1 {[%emt 0:00:00][%cal Og2f1]} c5 {[%emt 0:01:49]} (30... Rd6 31. Bxc6 Rxc6 32. Rxd3 Rxe6 33. Rd2 $19) 31. Bc6 {[%emt 0:00:00]} Rd4 {[%emt 0:00:53] White did not feel at home in the position after the opening.   Weighted Error Value: White=0.22 (precise) /Black=0.02 (flawless) .  Mistake:       	White=3     	---        Inaccurate:     	White=2     	---        OK:         	White=6     	Black=16     Best:        	---       	Black=1      Strong:       	---       	Black=1} 0-1

[Event "4NCL Spring GM Round Robin 2024"]
[Site "Peterborough"]
[Date "2024.03.25"]
[Round "4.5"]
[White "Kalavannan, Koby"]
[Black "Chow, Samuel"]
[Result "1/2-1/2"]
[ECO "A48"]
[WhiteElo "2324"]
[BlackElo "2356"]
[Annotator "RC"]
[PlyCount "260"]
[EventDate "2024.03.22"]
[EventType "tourn"]
[EventCountry "ENG"]
[SourceTitle "playchess.com"]
[Source "ChessBase"]
[SourceQuality "1"]
[TimeControl "5400+30"]

1. d4 {[%emt 0:01:17]} Nf6 {[%emt 0:00:12]} 2. Nf3 {[%emt 0:00:02]} g6 {[%emt 0:00:09]} 3. Nbd2 {[%emt 0:00:06]} c5 {[%emt 0:01:25]} 4. dxc5 {[%emt 0:00:10]} Na6 {[%emt 0:03:05]} 5. e4 {[%emt 0:03:09]} Nxc5 {[%emt 0:00:20]} 6. e5 {[%emt 0:00:17]} Nd5 {[%emt 0:03:31]} 7. Ng5 {[%emt 0:08:05]} Nb4 {[%emt 0:05:14]} 8. Qf3 {[%emt 0:01:44]} f6 {[%emt 0:00:33]} 9. exf6 {[%emt 0:20:11]} exf6 {[%emt 0:00:10]} 10. Kd1 {[%emt 0:00:30]} Be7 {[%emt 0:07:15]} 11. Nge4 {[%emt 0:29:23]} Ne6 {[%emt 0:03:13]} 12. Nb3 {[%emt 0:03:36]} O-O {[%emt 0:01:37]} 13. Bh6 {[%emt 0:00:19]} Rf7 {[%emt 0:00:32]} 14. c3 {[%emt 0:00:54]} Nc6 {[%emt 0:00:32]} 15. Kc2 {[%emt 0:00:41]} d5 {[%emt 0:09:32]} 16. Rd1 {[%emt 0:00:45]} Qc7 {[%emt 0:03:53]} 17. Ng3 {[%emt 0:00:43]} a5 {[%emt 0:02:04]} 18. Kb1 {[%emt 0:01:00]} a4 {[%emt 0:13:36]} 19. Nc1 {[%emt 0:00:00]} a3 {[%emt 0:00:43]} 20. Qxd5 {[%emt 0:04:52]} axb2 {[%emt 0:00:17]} 21. Nb3 {[%emt 0:00:02]} Ne5 {[%emt 0:08:42]} 22. Be3 {[%emt 0:02:24]} Qxc3 {[%emt 0:01:49]} 23. Bd2 {[%emt 0:04:00]} Qc6 {[%emt 0:07:38]} 24. Qxc6 {[%emt 0:01:11]} bxc6 {[%emt 0:00:30]} 25. f4 {[%emt 0:01:18]} Ng4 {[%emt 0:00:08]} 26. Bc4 {[%emt 0:00:15]} Ra4 {[%emt 0:07:08]} 27. Na5 {[%emt 0:01:15]} Rxc4 {[%emt 0:02:33]} 28. Nxc4 {[%emt 0:00:01]} Nf2 {[%emt 0:00:10]} 29. f5 {[%emt 0:03:22]} Nd4 {[%emt 0:01:45]} 30. fxg6 {[%emt 0:03:37]} hxg6 {[%emt 0:00:08]} 31. Bc3 {[%emt 0:02:11]} Nf5 {[%emt 0:01:27]} 32. Nxf5 {[%emt 0:01:20]} Bxf5+ {[%emt 0:00:08]} 33. Kxb2 {[%emt 0:00:01]} Nxh1 {[%emt 0:00:50]} 34. Rxh1 {[%emt 0:00:00]} Be4 {[%emt 0:00:39]} 35. Nd2 {[%emt 0:00:52]} Bd5 {[%emt 0:00:35]} 36. Rf1 {[%emt 0:03:23]} f5 {[%emt 0:01:16]} 37. Nf3 {[%emt 0:01:49]} Bc5 {[%emt 0:01:27]} 38. Re1 {[%emt 0:00:22]} Ra7 {[%emt 0:01:38]} 39. Ra1 {[%emt 0:01:11]} Rb7+ {[%emt 0:02:15]} 40. Kc2 {[%emt 0:00:03]} Be4+ {[%emt 0:00:21]} 41. Kd2 {[%emt 0:00:01]} Rd7+ {[%emt 0:01:09]} 42. Ke2 {[%emt 0:00:35]} Rd3 {[%emt 0:00:11]} 43. Bd2 {[%emt 0:00:23]} Ra3 {[%emt 0:00:56]} 44. Bc1 {[%emt 0:00:29]} Rc3 {[%emt 0:00:22]} 45. Bd2 {[%emt 0:01:01]} Bd3+ {[%emt 0:00:29]} 46. Kd1 {[%emt 0:00:13]} Bc2+ {[%emt 0:00:09]} 47. Ke1 {[%emt 0:00:42]} Rc4 {[%emt 0:00:23]} 48. Bg5 {[%emt 0:02:33]} Re4+ {[%emt 0:01:55]} 49. Kd2 {[%emt 0:00:02]} Ba4 {[%emt 0:00:06]} 50. Bf6 {[%emt 0:00:39]} Bb5 {[%emt 0:01:08]} 51. Re1 {[%emt 0:00:08]} Ra4 {[%emt 0:00:05]} 52. Ra1 {[%emt 0:00:38]} Bc4 {[%emt 0:00:15]} 53. Kc3 {[%emt 0:00:58]} Bd5 {[%emt 0:01:11]} 54. Kb2 {[%emt 0:00:01]} Rg4 {[%emt 0:01:56]} 55. Ne1 {[%emt 0:00:42]} Re4 {[%emt 0:00:38]} 56. a4 {[%emt 0:00:28]} Kf7 {[%emt 0:00:46]} 57. Nd3 {[%emt 0:01:53]} Bd6 {[%emt 0:01:25]} 58. Bh8 {[%emt 0:00:05]} c5 {[%emt 0:02:45]} 59. a5 {[%emt 0:00:19]} Re8 {[%emt 0:00:46]} 60. Bc3 {[%emt 0:00:22]} Rb8+ {[%emt 0:00:03]} 61. Kc1 {[%emt 0:00:36]} Rb3 {[%emt 0:01:22]} 62. Kd2 {[%emt 0:00:20]} c4 {[%emt 0:01:55]} 63. Ne5+ {[%emt 0:00:02]} Ke6 {[%emt 0:00:11]} 64. Nxg6 {[%emt 0:00:19]} Bxh2 {[%emt 0:00:34]} 65. a6 {[%emt 0:00:22]} Bxg2 {[%emt 0:00:16]} 66. a7 {[%emt 0:02:09]} Ba8 {[%emt 0:00:07]} 67. Ra6+ {[%emt 0:00:15]} Kd7 {[%emt 0:00:27]} 68. Nf8+ {[%emt 0:00:27]} Kc8 {[%emt 0:00:55]} 69. Ne6 {[%emt 0:00:15]} Bg1 {[%emt 0:00:53]} 70. Ra5 {[%emt 0:00:44]} Rb6 {[%emt 0:00:44]} 71. Nd4 {[%emt 0:01:18]} Rd6 {[%emt 0:00:24]} 72. Rxf5 {[%emt 0:00:35]} Bxd4 {[%emt 0:00:26]} 73. Bxd4 {[%emt 0:00:08]} Rxd4+ {[%emt 0:00:04]} 74. Kc3 {[%emt 0:00:00]} Rd7 {[%emt 0:00:38]} 75. Kxc4 {[%emt 0:00:19]} Kb7 {[%emt 0:00:22]} 76. Ra5 {[%emt 0:00:16]} Kb6 {[%emt 0:00:09]} 77. Ra1 {[%emt 0:00:03]} Rd8 {[%emt 0:00:09]} 78. Ra3 {[%emt 0:00:09]} Bb7 {[%emt 0:00:10]} 79. a8=Q {[%emt 0:03:10]} Bxa8 {[%emt 0:00:06]} 80. Rb3+ {[%emt 0:00:00]} Kc7 {[%emt 0:00:25]} 81. Rg3 {[%emt 0:00:00]} Bc6 {[%emt 0:00:13]} 82. Kc5 {[%emt 0:00:00]} Rd5+ {[%emt 0:00:04]} 83. Kc4 {[%emt 0:00:00]} Rh5 {[%emt 0:00:14]} 84. Rg1 {[%emt 0:00:00]} Bd5+ {[%emt 0:00:26]} 85. Kd4 {[%emt 0:00:47]} Kd6 {[%emt 0:00:06]} 86. Rg4 {[%emt 0:00:08]} Be6 {[%emt 0:00:15]} 87. Rf4 {[%emt 0:00:34]} Bf5 {[%emt 0:02:07]} 88. Kc4 {[%emt 0:00:44]} Ke5 {[%emt 0:00:08]} 89. Rf1 {[%emt 0:00:11]} Rh8 {[%emt 0:00:08]} 90. Re1+ {[%emt 0:00:17]} Be4 {[%emt 0:00:04]} 91. Rg1 {[%emt 0:00:21]} Rc8+ {[%emt 0:00:05]} 92. Kb4 {[%emt 0:00:37]} Kd4 {[%emt 0:00:20]} 93. Rg4 {[%emt 0:00:11]} Rb8+ {[%emt 0:00:28]} 94. Ka4 {[%emt 0:00:10]} Kd3 {[%emt 0:00:42]} 95. Ka5 {[%emt 0:00:17]} Bd5 {[%emt 0:00:14]} 96. Rb4 {[%emt 0:01:14]} Rc8 {[%emt 0:00:28]} 97. Rg4 {[%emt 0:01:17]} Be4 {[%emt 0:00:13]} 98. Kb4 {[%emt 0:00:20]} Kd4 {[%emt 0:00:05]} 99. Rh4 {[%emt 0:00:15]} Rg8 {[%emt 0:01:10]} 100. Rf4 {[%emt 0:00:33]} Rb8+ {[%emt 0:01:46]} 101. Ka4 {[%emt 0:00:03]} Kd5 {[%emt 0:00:24]} 102. Ka3 {[%emt 0:00:08]} Bd3 {[%emt 0:00:14]} 103. Rb4 {[%emt 0:00:09]} Rh8 {[%emt 0:00:10]} 104. Rf4 {[%emt 0:00:52]} Kc5 {[%emt 0:00:33]} 105. Kb3 {[%emt 0:00:47]} Rh3 {[%emt 0:00:10]} 106. Kc3 {[%emt 0:01:02]} Be4+ {[%emt 0:00:30]} 107. Kb2 {[%emt 0:00:21]} Kd4 {[%emt 0:00:11]} 108. Rg4 {[%emt 0:00:52]} Re3 {[%emt 0:01:02]} 109. Rg7 {[%emt 0:01:06]} Re2+ {[%emt 0:01:16]} 110. Ka3 {[%emt 0:01:18]} Bd5 {[%emt 0:00:18]} 111. Rc7 {[%emt 0:00:26]} Bc4 {[%emt 0:00:50]} 112. Kb4 {[%emt 0:00:33]} Rb2+ {[%emt 0:00:04]} 113. Ka5 {[%emt 0:00:20]} Rb8 {[%emt 0:00:25]} 114. Ka4 {[%emt 0:00:49]} Kd5 {[%emt 0:01:29]} 115. Ka3 {[%emt 0:00:22]} Rb1 {[%emt 0:00:25]} 116. Rd7+ {[%emt 0:00:34]} Kc5 {[%emt 0:00:07]} 117. Rc7+ {[%emt 0:00:30]} Kd4 {[%emt 0:00:04]} 118. Ka4 {[%emt 0:00:11]} Rb5 {[%emt 0:00:23]} 119. Rh7 {[%emt 0:00:35]} Rb8 {[%emt 0:00:22]} 120. Rc7 {[%emt 0:00:19]} Bd5 {[%emt 0:00:28]} 121. Ka5 {[%emt 0:00:26]} Rb2 {[%emt 0:00:20]} 122. Ka6 {[%emt 0:00:21]} Be4 {[%emt 0:00:28]} 123. Ka7 {[%emt 0:00:24]} Ke5 {[%emt 0:00:24]} 124. Rd7 {[%emt 0:00:51]} Bc6 {[%emt 0:00:27]} 125. Rd8 {[%emt 0:00:14]} Rb1 {[%emt 0:00:45]} 126. Ka6 {[%emt 0:00:11]} Bd5 {[%emt 0:00:09]} 127. Ka7 {[%emt 0:00:08]} Rb2 {[%emt 0:00:14]} 128. Ka6 {[%emt 0:00:24]} Kd4 {[%emt 0:00:09]} 129. Ka7 {[%emt 0:00:09]} Kc5 {[%emt 0:00:07]} 130. Rc8+ {[%emt 0:00:16]} Bc6 {[%emt 0:07:51]} 1/2-1/2

[Event "4NCL Spring GM Round Robin 2024"]
[Site "Peterborough"]
[Date "2024.03.25"]
[Round "5.1"]
[White "Chow, Samuel"]
[Black "Gumularz, Szymon"]
[Result "1/2-1/2"]
[ECO "E61"]
[WhiteElo "2356"]
[BlackElo "2590"]
[Annotator "TA"]
[PlyCount "62"]
[EventDate "2024.03.22"]
[EventType "tourn"]
[EventCountry "ENG"]
[SourceTitle "playchess.com"]
[Source "ChessBase"]
[SourceQuality "1"]
[TimeControl "5400+30"]

{[%evp 9,62,18,40,38,68,43,56,50,64,38,37,41,66,49,71,59,76,56,66,62,62,72,122,112,83,51,126,37,63,87,70,80,64,39,68,58,39,0,0,0,0,0,0,0,0,0,0,0,0,0,0,0,0,0,0]} 1. d4 {[%emt 0:00:13]} d6 {[%emt 0:00:08]} 2. Nf3 {[%emt 0:01:01]} Nf6 {[%emt 0:00:09]} 3. c4 {[%emt 0:00:48]} g6 {[%emt 0:00:07]} 4. Nc3 {[%emt 0:00:56]} Bf5 {[%emt 0:00:06]} 5. h3 {[%emt 0:02:42]} Bg7 {[%emt 0:00:33]} 6. g4 {[%emt 0:01:01]} Bd7 {[%emt 0:00:07]} 7. Bg2 {[%emt 0:00:45]} O-O {[%emt 0:00:19]} 8. Bf4 {[%emt 0:03:12] White is slightly better.} Nc6 {[%emt 0:02:34]} 9. e3 {[%emt 0:01:35]} Re8 {[%emt 0:00:23]} 10. O-O {[%emt 0:09:19]} e5 {[%emt 0:00:13]} 11. dxe5 {[%emt 0:04:21]} dxe5 {[%emt 0:00:06]} 12. Bg5 {[%emt 0:00:38]} h6 {[%emt 0:02:02]} 13. Bh4 {[%emt 0:00:33]} Qc8 {[%emt 0:00:55]} 14. Nd2 {[%emt 0:07:25]} Be6 {[%emt 0:01:05]} 15. Nd5 {[%emt 0:02:04]} Nd7 {[%emt 0:11:07]} (15... Nh7 $142) 16. Rc1 {[%emt 0:05:05]} a5 {[%emt 0:04:10]} 17. Ne4 {[%emt 0:03:47]} Kh8 {[%emt 0:00:11]} ({Black should try} 17... f5 $1 $14) 18. Nef6 {[%emt 0:02:58] White has more active pieces.} (18. Nec3 $16) 18... Nxf6 {[%emt 0:07:30]} 19. Bxf6 {[%emt 0:01:27]} Bxf6 {[%emt 0:11:26]} 20. Nxf6 {[%emt 0:00:07]} Rd8 {[%emt 0:00:04]} 21. Nd5 {[%emt 0:05:37]} (21. Qf3 {is interesting.} Kg7 22. Ne4 f5 23. Nc5) 21... Rd7 {[%emt 0:05:28]} 22. f4 {[%emt 0:05:44]} Qd8 {[%emt 0:00:30]} 23. Qe1 {[%emt 0:01:26] Repels Nb4} Bxd5 {[%emt 0:05:01] The position is equal.} 24. cxd5 {[%emt 0:01:56]} Nb4 {[%emt 0:01:22]} 25. Rd1 {[%emt 0:04:01] Dodges Nd3} ({Much worse is} 25. fxe5 Nd3 26. Qc3 Nxc1 27. Qxc1 (27. e6+ Kg8 $11) 27... Ra6 $17) 25... Nxd5 {[%emt 0:05:26]} 26. fxe5 {[%emt 0:00:16]} c6 {[%emt 0:01:20]} 27. Qf2 {[%emt 0:01:36]} Kg8 {[%emt 0:03:35]} 28. Bxd5 {[%emt 0:03:56]} cxd5 {[%emt 0:00:12]} 29. Qf6 {[%emt 0:03:19]} Qe8 {[%emt 0:03:43]} 30. e6 {[%emt 0:05:11]} fxe6 {[%emt 0:07:35]} 31. Qe5 {[%emt 0:00:25]} Kh7 {[%emt 0:10:35] Weighted Error Value: White=0.12 (very precise) /Black=0.11 (very precise) .  Mistake:       	White=1     	Black=2      Inaccurate:     	White=2     	Black=3      OK:         	White=13    	Black=9} 1/2-1/2

[Event "4NCL Spring GM Round Robin 2024"]
[Site "Peterborough"]
[Date "2024.03.25"]
[Round "5.2"]
[White "Teclaf, Pawel"]
[Black "Kalavannan, Koby"]
[Result "1-0"]
[ECO "A05"]
[WhiteElo "2556"]
[BlackElo "2324"]
[Annotator "TA"]
[PlyCount "67"]
[EventDate "2024.03.22"]
[EventType "tourn"]
[EventCountry "ENG"]
[SourceTitle "playchess.com"]
[Source "ChessBase"]
[SourceQuality "1"]
[TimeControl "5400+30"]

{[%evp 22,66,47,57,46,46,81,88,117,129,129,119,211,216,231,240,237,235,238,235,243,244,235,241,245,239,250,249,273,272,281,277,287,292,347,337,347,266,374,345,5206,5197,29992,29983,29997,29998,29999]} 1. Nf3 {[%emt 0:00:02]} c5 {[%emt 0:00:31]} 2. b3 {[%emt 0:00:06]} Nf6 {[%emt 0:01:03]} 3. Bb2 {[%emt 0:00:06]} g6 {[%emt 0:00:40]} 4. c4 {[%emt 0:00:29]} Bg7 {[%emt 0:00:08]} 5. g3 {[%emt 0:00:04]} O-O {[%emt 0:02:09]} 6. Bg2 {[%emt 0:00:06]} Nc6 {[%emt 0:02:00]} 7. O-O {[%emt 0:02:06]} d5 {[%emt 0:00:40]} 8. cxd5 {[%emt 0:00:08]} Nxd5 {[%emt 0:00:02]} 9. Bxg7 {[%emt 0:00:06]} Kxg7 {[%emt 0:00:01]} 10. d4 {[%emt 0:00:06]} cxd4 {[%emt 0:00:20]} 11. Nxd4 {[%emt 0:00:07]} Nxd4 {[%emt 0:00:03]} 12. Qxd4+ {[%emt 0:00:05]} Nf6 {[%emt 0:00:04]} 13. Qe5 {[%emt 0:00:04]} Qb6 {[%emt 0:02:41]} 14. Nc3 {[%emt 0:01:03][%cal Bb1c3,Bc3a4,Ba4c5][%mdl 32] White is more active.} ({Much weaker is} 14. Qxe7 Re8 15. Qa3 Qd4 $15) 14... Be6 {[%emt 0:00:42] White is better.} 15. Na4 {[%emt 0:00:26]} Qb4 {[%emt 0:00:16]} 16. Nc5 {[%emt 0:00:32]} Bd5 {[%emt 0:03:06]} 17. Qxe7 $18 {[%emt 0:03:16][%cal Oc5e6] [#] And now Ne6+! would win.} Kg8 {[%emt 0:00:32]} 18. Qxf6 {[%emt 0:02:12]} Bxg2 {[%emt 0:00:15]} 19. Ne6 {[%emt 0:06:55]} ({But not} 19. Kxg2 $6 Qxc5 20. Rac1 Qa5 $16) 19... fxe6 {[%emt 0:00:30]} 20. Qxe6+ {[%emt 0:00:04]} Kg7 {[%emt 0:00:15]} 21. Kxg2 {[%emt 0:01:53]} Rae8 {[%emt 0:00:01]} 22. Qd7+ {[%emt 0:00:08]} Re7 {[%emt 0:00:05]} 23. Qd3 {[%emt 0:00:05]} h5 {[%emt 0:04:04]} 24. Rac1 {[%emt 0:03:28][%cal Ba1c1,Bc1c4,Bc4e4,Be4e6][%mdl 32]} Kh7 {[%emt 0:03:30]} 25. Rc4 {[%emt 0:01:48]} Qa5 {[%emt 0:00:48]} 26. Re4 {[%emt 0:02:24]} Ref7 {[%emt 0:03:21]} 27. Re6 {[%emt 0:00:13]} Rg7 {[%emt 0:00:01]} 28. Rc1 {[%emt 0:01:19]} Rf5 {[%emt 0:03:50]} 29. Re8 {[%emt 0:07:33]} Rgf7 {[%emt 0:00:38]} (29... Qd5+ {was necessary.} 30. Qxd5 Rxd5) 30. f4 {[%emt 0:01:32] [#] e4 would now be deadly.} Qxa2 $2 {[%emt 0:09:11]} (30... Qd5+ 31. Qf3 g5) 31. Qd4 {[%emt 0:00:34]} R5f6 {[%emt 0:03:08]} 32. Qxf6 {[%emt 0:00:10] White mates.} Rxf6 {[%emt 0:00:01]} 33. Rc7+ {[%emt 0:00:06]} Kh6 {[%emt 0:00:07]} 34. Rh8# {[%emt 0:00:34] Black did not feel at home in the position after the opening.   Weighted Error Value: White=0.08 (flawless) /Black=0.46.  Mistake:       	---       	Black=3      Inaccurate:     	---       	Black=3      OK:         	White=10    	Black=4      Best:        	White=4     	Black=1} 1-0